lending/lending_fUSD_20250706
["ID","MTS","AMOUNT","RATE_DAILY","PERIOD"]
[369963326,1751800242806,-460.0,0.00019178,2]
[369963329,1751800242816,-500.0,0.00019178,2]
[369963330,1751800242825,-460.0,0.00019178,2]
[369963333,1751800242834,-460.0,0.00019178,2]
[369963335,1751800242844,-460.0,0.00019178,2]
[369963361,1751800243090,-460.0,0.00019178,2]
[369963363,1751800243100,-271.77041106,0.00019178,2]
[369963369,1751800243148,-188.22958894,0.00019178,2]
[369963371,1751800243159,-460.0,0.00019178,2]
[369963373,1751800243169,-460.0,0.00019178,2]
[369963375,1751800243178,-314.39041106,0.00019178,2]
[369963379,1751800243201,-145.60958894,0.00019178,2]
[369963381,1751800243210,-460.0,0.00019178,2]
[369963383,1751800243219,-460.0,0.00019178,2]
[369963385,1751800243228,-460.0,0.00019178,2]
[369963387,1751800243237,-460.0,0.00019178,2]
[369963389,1751800243246,-460.0,0.00019178,2]
[369963391,1751800243255,-460.0,0.00019178,2]
[369963393,1751800243264,-460.0,0.00019178,2]
[369963395,1751800243273,-460.0,0.00019178,2]
[369963397,1751800243282,-460.0,0.00019178,2]
[369963399,1751800243292,-460.0,0.00019178,2]
[369963401,1751800243301,-460.0,0.00019178,2]
[369963402,1751800243310,-197.79441106,0.00019178,2]
[369963407,1751800243339,-262.20558894,0.00019178,2]
[369963408,1751800243349,-370.99441106,0.00019178,2]
[369963653,1751800245819,-89.00558894,0.00019178,2]
[369963655,1751800245828,-460.0,0.00019178,2]
[369963657,1751800245838,-460.0,0.00019178,2]
[369963659,1751800245847,-460.0,0.00019178,2]
[369963661,1751800245856,-286.86579679,0.00019178,2]
[369963663,1751800245865,-460.0,0.00019178,2]
[369963665,1751800245874,-404.97426086,0.00019178,2]
[369965378,1751801014525,3635.0,0.000138,2]
[369965380,1751801029677,224.4,0.00013699,2]
[369965381,1751801068101,4000.0,0.000138,2]
[369965397,1751801431718,-1200.0,0.00014999,2]
[369965398,1751801431727,-112.35212548,0.00015,2]
[369965712,1751801443194,-137.64787452,0.00015,2]
[369965713,1751801443204,-1421.97006956,0.00015,2]
[369965781,1751802099239,213.18,0.00013699,2]
[369965785,1751802358759,-150.0,0.0002422,120]
[369965786,1751802358823,-150.0,0.00024895,120]
[369965787,1751802358870,-883.1974204,0.00025,120]
[369965788,1751802358926,-150.0,0.00025798,120]
[369965789,1751802358953,-150.0,0.00025861,120]
[369965790,1751802358983,-150.0,0.0002635,120]
[369965791,1751802359015,-150.0,0.00026731,120]
[369965792,1751802359042,-150.0,0.00026897,120]
[369965793,1751802359068,-800.0,0.00026986,120]
[369965794,1751802359097,-150.0,0.00027284,120]
[369965795,1751802359127,-600.0,0.00027397,120]
[369965796,1751802359153,-600.0,0.00027397,120]
[369965797,1751802359181,-336.53632474,0.00027397,120]
[369965798,1751802359212,-538.2438835,0.000274,120]
[369965799,1751802359239,-150.0,0.00027695,120]
[369965800,1751802359267,-150.0,0.00028395,120]
[369965801,1751802359296,-150.0,0.00028656,120]
[369965802,1751802359324,-178.0,0.00029,120]
[369965803,1751802359352,-150.0,0.00029067,120]
[369965804,1751802359381,-150.0,0.00029751,120]
[369965805,1751802359411,-150.0,0.00029758,120]
[369965806,1751802359441,-150.0,0.0002985,120]
[369965807,1751802359470,-150.0,0.00029975,120]
[369965808,1751802359501,-836.76783547,0.0003,120]
[369965809,1751802429636,469.3538439,0.0003,120]
[369965812,1751802478740,24952.5120294,0.00018,30]
[369965814,1751802502612,460.0,0.0003,120]
[369965815,1751802511232,150.0,0.00028532,120]
[369965817,1751802519839,1530.0,0.0003013,120]
[369965819,1751802520523,826.0,0.0003013,120]
[369965820,1751802523845,760.0,0.0003013,120]
[369965821,1751802524675,1442.0,0.0003013,120]
[369965822,1751802525438,415.0,0.0003013,120]
[369965823,1751802529093,362.0,0.0003013,120]
[369965824,1751802530283,353.0,0.0003013,120]
[369965825,1751802531105,310.0,0.0003013,120]
[369965826,1751802532283,429.0,0.0003013,120]
[369965828,1751802539843,1000.0,0.00030136,120]
[369965829,1751802549336,800.0,0.00030137,120]
[369965831,1751802567950,167.0,0.0002609,120]
[369965832,1751802567979,1864.0,0.0002609,120]
[369965834,1751802568384,167.0,0.0002608,120]
[369965835,1751802568430,1864.0,0.0002608,120]
[369965838,1751802568825,167.0,0.0002607,120]
[369965840,1751802569011,1864.0,0.0002607,120]
[369965841,1751802569264,167.0,0.0002789,120]
[369965843,1751802569448,1864.0,0.0002789,120]
[369965844,1751802569717,167.0,0.0002788,120]
[369965846,1751802569896,1864.0,0.0002788,120]
[369965847,1751802570177,167.0,0.0002787,120]
[369965849,1751802570349,1864.0,0.0002787,120]
[369965851,1751802570720,167.0,0.0002889,120]
[369965852,1751802570798,1864.0,0.0002889,120]
[369965854,1751802571267,1864.0,0.0002888,120]
[369965857,1751802571945,167.0,0.0002888,120]
[369965859,1751802572494,167.0,0.0002999,120]
[369965860,1751802572558,1864.0,0.0002999,120]
[369965861,1751802572694,174.46,0.0002998,120]
[369965862,1751802572779,1868.86,0.0002998,120]
[369965866,1751802581643,645.0,0.0003013,120]
[369965881,1751802583029,781.0,0.0003013,120]
[369965892,1751802584404,1303.0,0.0003013,120]
[369965894,1751802588465,645.0,0.0003013,120]
[369965895,1751802589154,326.0,0.0003013,120]
[369965897,1751802592631,206.95659401,0.0003013,120]
[369965898,1751802603139,186.18628085,0.00030137,120]
[369965900,1751802603215,1509.3565737,0.00030137,120]
[369965902,1751802603246,831.116,0.00030137,120]
[369965903,1751802603288,379.58904119,0.00030137,120]
[369965904,1751802603594,420.25,0.00030137,120]
[369966032,1751802631935,-308.44735783,0.0001485,2]
[369966033,1751802631990,-682.16950726,0.0001485,2]
[369966034,1751802632260,-374.36489491,0.0001485,2]
[369966035,1751802632271,-182.48358183,0.00014899,2]
[369966036,1751802632281,-496.0,0.00014999,2]
[369966037,1751802632291,-7760.35381609,0.00015,2]
[369966038,1751802632301,-200.0,0.00015,2]
[369966039,1751802632310,-1364.98177,0.0001585,2]
[369966041,1751802632320,-1451.222893,0.000159,2]
[369966042,1751802632330,-249.72700704,0.00016387,2]
[369966043,1751802632340,-1451.22289281,0.00016624,2]
[369966044,1751802632350,-395.19,0.00016828,2]
[369966045,1751802632360,-1364.98177,0.0001685,2]
[369966047,1751802632371,-500.0,0.00017064,2]
[369966049,1751802632381,-500.0,0.00017064,2]
[369966051,1751802632391,-200.0,0.00017117,7]
[369966053,1751802632401,-1000.0,0.00017118,2]
[369966055,1751802632410,-567.44,0.00017151,2]
[369966057,1751802632419,-800.66,0.00017182,2]
[369966058,1751802632429,-926.18,0.00017182,2]
[369966059,1751802632439,-535.95,0.00017182,2]
[369966060,1751802632449,-233.26,0.00017197,3]
[369966062,1751802632460,-1081.0,0.0001725,2]
[369966063,1751802632470,-800.66,0.00017282,2]
[369966064,1751802632480,-1451.22289281,0.00017348,2]
[369966065,1751802632490,-150.0,0.00017507,2]
[369966066,1751802632499,-500.0,0.00017754,2]
[369966067,1751802632509,-1364.98177,0.0001785,2]
[369966068,1751802632518,-5051.50436968,0.00018,2]
[369966069,1751802632527,-9715.8787251,0.00018,2]
[369966070,1751802632539,-6512.07818172,0.00018,2]
[369966071,1751802632551,-940.79539252,0.00018,2]
[369966072,1751802632563,-752.81549999,0.00018,2]
[369966073,1751802632612,-369.43,0.00018,2]
[369966080,1751802638000,-1338.391608,0.00018,2]
[369966081,1751802638011,-4867.95305212,0.00018,2]
[369966082,1751802638022,-818.775,0.00018,2]
[369966083,1751802638034,-543.48961775,0.00018,2]
[369966084,1751802638056,-3534.17470216,0.00018,2]
[369966085,1751802638066,-318.90485995,0.00018,2]
[369966086,1751802638108,-2499.48258898,0.00018,2]
[369966087,1751802638119,-953.27572824,0.00018,2]
[369966088,1751802638163,-843.14651037,0.00018,2]
[369966089,1751802638174,-832.25,0.00018,2]
[369966090,1751802638270,-490.0,0.00018,2]
[369966276,1751802640258,-561.27434148,0.00018,2]
[369966278,1751802640270,-734.7091346,0.00018,2]
[369966281,1751802640281,-1640.775,0.00018,2]
[369966557,1751802643043,-515.21,0.00018,2]
[369966581,1751802643258,-5815.60309588,0.00018,2]
[369966583,1751802643271,-5973.73520621,0.00018,2]
[369966586,1751802643283,-49557.96585208,0.00018,2]
[369966588,1751802643294,-1453.50098755,0.00018,2]
[369966808,1751802645967,-186.12212731,0.00017972,2]
[369966810,1751802645977,-13705.52988143,0.00018,2]
[369966823,1751802646093,-174304.93011972,0.00018,2]
[369966825,1751802646103,-611.78940531,0.00018072,2]
[369966877,1751802647110,1865.0,0.0003013,120]
[369966944,1751802648123,290.0,0.0003013,120]
[369966959,1751802650428,1290.0,0.0003013,120]
[369966997,1751802651336,1231.22401629,0.0003013,120]
[369967011,1751802665024,180.0,0.00029,120]
[369967012,1751802681424,1444.0,0.00026137,120]
[369967014,1751802685739,150.5,0.0002609,120]
[369967015,1751802686202,150.5,0.0002608,120]
[369967016,1751802686662,150.5,0.0002607,120]
[369967017,1751802690701,150.0,0.00024798,120]
[369967019,1751802701774,512.1217014,0.0003013,120]
[369967023,1751802779541,1273.86,0.00026859,120]
[369967024,1751802780341,1000.0,0.00030136,120]
[369967025,1751802794504,540.64792,0.00028949,120]
[369967026,1751802797183,2000.0,0.00027263,120]
[369967027,1751802797538,2000.0,0.00030135,120]
[369967028,1751802801799,500.0,0.00028949,120]
[369967029,1751802806290,500.0,0.00028309,120]
[369967030,1751802806629,500.0,0.00030135,120]
[369967032,1751802836030,924.60163574,0.00027397,120]
[369967033,1751802883766,460.0,0.00027397,120]
[369967034,1751802884042,460.0,0.00027397,120]
[369967035,1751802884326,460.0,0.00027397,120]
[369967036,1751802884574,460.0,0.00027397,120]
[369967037,1751802885242,460.0,0.00027397,120]
[369967038,1751802885445,460.0,0.00027397,120]
[369967039,1751802885499,460.0,0.00027397,120]
[369967040,1751802885568,460.0,0.00027397,120]
[369967041,1751802885845,460.0,0.00027397,120]
[369967042,1751802886118,460.0,0.00027397,120]
[369967043,1751802886362,460.0,0.00027397,120]
[369967044,1751802886613,460.0,0.00027397,120]
[369967045,1751802886855,460.0,0.00027397,120]
[369967046,1751802887136,460.0,0.00027397,120]
[369967047,1751802887388,460.0,0.00027397,120]
[369967048,1751802887655,460.0,0.00027397,120]
[369967049,1751802887915,549.08473058,0.00027397,120]
[369967050,1751802888421,600.0,0.00027397,120]
[369967051,1751802888660,600.0,0.00027397,120]
[369967052,1751802888907,600.0,0.00027397,120]
[369967053,1751802889193,600.0,0.00027397,120]
[369967054,1751802889505,597.11678701,0.00027397,120]
[369967055,1751802896730,158.52747802,0.0003,120]
[369967056,1751802901217,979.9,0.00030136,120]
[369967057,1751802907936,567.72,0.0003013,120]
[369967058,1751802909652,152.0,0.00029,120]
[369967059,1751802918446,2269.4642,0.0003013,120]
[369967070,1751803003369,5000.0,0.00030137,120]
[369967075,1751803090413,202.52,0.00013699,2]
[369967090,1751803162177,180.0,0.0001369,2]
[369967091,1751803168656,1616.0,0.00030137,120]
[369967092,1751803171279,150.0,0.00025338,120]
[369967094,1751803192942,150.0,0.00013699,2]
[369967096,1751803202943,801.37756169,0.00030136,120]
[369967097,1751803207355,150.0,0.00013699,2]
[369967098,1751803222795,180.0,0.00013699,2]
[369967099,1751803235185,250.0,0.00013699,2]
[369967100,1751803271707,160.0073553,0.00013699,2]
[369967109,1751803290954,150.0,0.00029581,120]
[369967113,1751803300027,150.0,0.00027534,120]
[369967114,1751803300349,169.72504765,0.00027671,120]
[369967115,1751803393747,2000.0,0.00013589,2]
[369967116,1751803394109,2000.0,0.00025591,120]
[369967117,1751803394582,2000.0,0.00028683,120]
[369967118,1751803394926,2000.0,0.00030136,120]
[369967119,1751803398983,580.423624,0.00026509,120]
[369967120,1751803404124,500.0,0.00026538,120]
[369967121,1751803405623,500.0,0.00030136,120]
[369967122,1751803409510,200.0,0.00013589,2]
[369967123,1751803410888,150.0,0.00029431,120]
[369967128,1751803466252,1444.0,0.00026137,120]
[369967130,1751803467714,1150.4939839,0.00030136,120]
[369967132,1751803477229,791.78,0.00030136,120]
[369967133,1751803477470,791.78,0.00030136,120]
[369967134,1751803477688,791.78,0.00030136,120]
[369967135,1751803477946,791.78,0.00030136,120]
[369967136,1751803478195,791.78,0.00030136,120]
[369967137,1751803478501,791.78,0.00030136,120]
[369967138,1751803478748,791.78,0.00030136,120]
[369967139,1751803479143,791.78,0.00030136,120]
[369967140,1751803479350,791.78,0.00030136,120]
[369967141,1751803479683,791.78,0.00030136,120]
[369967142,1751803479847,791.78,0.00030136,120]
[369967143,1751803480114,791.78,0.00030136,120]
[369967144,1751803480455,791.78,0.00030136,120]
[369967145,1751803480701,791.78,0.00030136,120]
[369967146,1751803480966,791.78,0.00030136,120]
[369967147,1751803481353,791.78,0.00030136,120]
[369967148,1751803481949,791.78,0.00030136,120]
[369967149,1751803482256,791.78,0.00030136,120]
[369967150,1751803482521,791.78,0.00030136,120]
[369967151,1751803482746,791.78,0.00030136,120]
[369967152,1751803483020,791.78,0.00030136,120]
[369967153,1751803483680,791.78,0.00030136,120]
[369967154,1751803483871,791.78,0.00030136,120]
[369967155,1751803484011,791.85308421,0.00030136,120]
[369967161,1751803646809,10255.53510492,0.0003,120]
[369967163,1751803686744,1500.0,0.00030137,120]
[369967165,1751803770674,150.0,0.00029536,120]
[369967174,1751803832190,-546.0,0.00014272,2]
[369967175,1751803832199,-150.0,0.00015,6]
[369967176,1751803832210,-363.48835587,0.00017063,2]
[369967177,1751803832402,-478.51164413,0.00017063,2]
[369967178,1751803832412,-473.29760317,0.00017064,2]
[369967179,1751803832424,-26.70239683,0.00017064,2]
[369967180,1751803832434,-500.0,0.00017064,2]
[369967181,1751803832443,-301.01,0.00017064,2]
[369967182,1751803832452,-304.27,0.00017064,2]
[369967183,1751803832461,-301.68,0.00017064,2]
[369967184,1751803832470,-303.77,0.00017064,2]
[369967185,1751803832479,-135.72243011,0.00017064,2]
[369967186,1751803832490,-169.93756989,0.00017064,2]
[369967187,1751803832500,-303.41,0.00017064,2]
[369967188,1751803832509,-301.49,0.00017064,2]
[369967189,1751803832523,-176.68191443,0.00017064,2]
[369967190,1751803832621,-126.82808557,0.00017064,2]
[369967192,1751803832630,-300.47,0.00017064,2]
[369967195,1751803832640,-300.48,0.000171,2]
[369967196,1751803832650,-302.57,0.000171,2]
[369967197,1751803832659,-666.0,0.00017805,2]
[369967198,1751803832669,-1000.0,0.00017816,2]
[369967199,1751803832679,-454.99392,0.0001789,2]
[369967201,1751803832688,-1285.70762341,0.000179,2]
[369967202,1751803832697,-1273.86,0.00017906,2]
[369967203,1751803832707,-250.0,0.00017908,2]
[369967204,1751803832716,-200.0,0.00017944,7]
[369967205,1751803832725,-1340.73,0.00018,2]
[369967206,1751803832735,-463.37,0.00018,2]
[369967207,1751803832744,-800.66,0.00018,2]
[369967208,1751803832754,-463.37,0.00018,2]
[369967210,1751803832763,-800.66,0.00018,2]
[369967211,1751803832772,-463.37,0.00018,2]
[369967212,1751803832781,-464.16,0.00018,2]
[369967213,1751803832791,-456.91,0.00018,2]
[369967214,1751803832800,-454.99392,0.0001801,2]
[369967215,1751803832809,-207.4,0.00018043,2]
[369967216,1751803832819,-151.0,0.00018043,2]
[369967217,1751803832828,-197.0,0.000181,2]
[369967218,1751803832839,-740.01,0.00018192,2]
[369967219,1751803832850,-800.66,0.000182,2]
[369967220,1751803832860,-463.37,0.000182,2]
[369967221,1751803832869,-454.99393,0.0001826,2]
[369967222,1751803832879,-260.2,0.00018329,2]
[369967223,1751803832888,-463.37,0.000184,2]
[369967224,1751803832897,-800.66,0.000184,2]
[369967225,1751803832907,-312.48,0.00018438,2]
[369967226,1751803832916,-454.99392,0.0001851,2]
[369967227,1751803832925,-1285.70762335,0.00018555,2]
[369967228,1751803832934,-193.0,0.0001859,2]
[369967229,1751803832944,-156.587,0.00018591,2]
[369967230,1751803832953,-500.0,0.00018596,2]
[369967231,1751803832962,-500.0,0.00018596,2]
[369967232,1751803832971,-1099.0,0.00018596,2]
[369967233,1751803832981,-438.0,0.00018596,2]
[369967234,1751803832990,-3342.0,0.00018596,2]
[369967235,1751803832999,-2010.0,0.00018596,2]
[369967236,1751803833008,-805.0,0.00018596,2]
[369967237,1751803833017,-640.0,0.00018596,2]
[369967238,1751803833026,-1681.0,0.00018596,2]
[369967239,1751803833035,-560.0,0.00018596,2]
[369967240,1751803833044,-1282.0,0.00018596,2]
[369967241,1751803833053,-931.0,0.00018596,2]
[369967242,1751803833063,-593.0,0.00018596,2]
[369967243,1751803833072,-858.0,0.00018596,2]
[369967244,1751803833081,-4110.0,0.00018596,2]
[369967245,1751803833091,-447.16,0.0001863,2]
[369967246,1751803833100,-400.0,0.000187,6]
[369967247,1751803833109,-454.99393,0.0001876,2]
[369967248,1751803833119,-151.021695,0.00018794,2]
[369967249,1751803833128,-350.0,0.000188,2]
[369967250,1751803833137,-900.0,0.000188,6]
[369967251,1751803833146,-1155.0,0.00018809,2]
[369967252,1751803833155,-250.0,0.00018809,2]
[369967253,1751803833164,-535.0,0.00018809,2]
[369967254,1751803833173,-500.0,0.00018809,2]
[369967255,1751803833183,-500.0,0.00018809,2]
[369967256,1751803833192,-150.0,0.00018809,2]
[369967257,1751803833202,-338.94237947,0.00018809,2]
[369967258,1751803833215,-161.05762053,0.00018809,2]
[369967259,1751803833224,-150.0,0.00018809,2]
[369967260,1751803833234,-500.0,0.00018809,2]
[369967261,1751803833243,-150.0,0.00018809,2]
[369967262,1751803833252,-150.0,0.00018838,2]
[369967263,1751803833262,-475.88592297,0.00018838,2]
[369967264,1751803833289,-24.11407703,0.00018838,2]
[369967265,1751803833299,-150.0,0.00018838,2]
[369967266,1751803833309,-500.0,0.00018838,2]
[369967267,1751803833318,-41.02103391,0.00018838,2]
[369967268,1751803833329,-108.97896609,0.00018838,2]
[369967269,1751803833339,-168.0,0.00018868,2]
[369967270,1751803833348,-500.0,0.0001887,2]
[369967271,1751803833357,-226.44076416,0.0001887,2]
[369967277,1751803838384,-273.55923584,0.0001887,2]
[369967278,1751803838394,-87.6096387,0.0001887,2]
[369967279,1751803838429,-1011.3903613,0.0001887,2]
[369967285,1751803838689,-438.0,0.0001887,2]
[369967286,1751803838699,-265.0,0.0001889,2]
[369967287,1751803838708,-1400.0,0.000189,6]
[369967288,1751803838718,-1000.0,0.00019,2]
[369967289,1751803838727,-1000.0,0.00019,2]
[369967290,1751803838737,-1000.0,0.00019,2]
[369967291,1751803838747,-1000.0,0.00019,2]
[369967292,1751803838756,-1000.0,0.00019,2]
[369967293,1751803838766,-287.84778327,0.00019,2]
[369967295,1751803838798,-712.15221673,0.00019,2]
[369967297,1751803838809,-1000.0,0.00019,2]
[369967299,1751803838819,-1000.0,0.00019,2]
[369967301,1751803838829,-1000.0,0.00019,2]
[369967303,1751803838839,-1000.0,0.00019,2]
[369967305,1751803838849,-484.14142764,0.00019,2]
[369967461,1751803840328,-509.71888131,0.00019,2]
[369967473,1751803840433,-6.13969105,0.00019,2]
[369967476,1751803840447,-316.69030895,0.00019,2]
[369967502,1751803840696,-299.62969105,0.00019,2]
[369967504,1751803840706,-2.59672966,0.0001901,2]
[369967509,1751803840749,-452.39719034,0.0001901,2]
[369967511,1751803840759,-448.17868066,0.00019013,2]
[369967513,1751803840769,-99.0427842,0.00019016,2]
[369967835,1751803844026,-161.1572158,0.00019016,2]
[369967836,1751803844035,-160.0,0.00019055,2]
[369967837,1751803844049,-201.3427842,0.00019055,2]
[369967841,1751803844126,-374.72962927,0.00019055,2]
[369967844,1751803844139,-260.695422,0.00019055,2]
[369967846,1751803844149,-33.11311046,0.0001907,2]
[369967848,1751803844161,-155.88688954,0.0001907,2]
[369967850,1751803844170,-224.16759264,0.00019076,2]
[369967852,1751803844179,-47.12980318,0.00019076,2]
[369967854,1751803844191,-129.68621766,0.00019076,2]
[369967856,1751803844202,-408.19378234,0.00019078,2]
[369967859,1751803844213,-250.48040969,0.00019078,2]
[369967861,1751803844224,-1983.9174799,0.00019078,2]
[369967863,1751803844234,-297.64800715,0.00019078,2]
[369967865,1751803844243,-1589.63409575,0.00019078,2]
[369967867,1751803844254,-1233.68917964,0.00019078,2]
[369967869,1751803844266,-2176.67672461,0.00019078,2]
[369967871,1751803844276,-1155.0,0.00019083,2]
[369967873,1751803844285,-535.0,0.00019083,2]
[369967875,1751803844294,-500.0,0.00019083,2]
[369967877,1751803844304,-500.0,0.00019083,2]
[369967879,1751803844313,-150.0,0.00019083,2]
[369967881,1751803844324,-500.0,0.00019083,2]
[369967883,1751803844333,-150.0,0.00019083,2]
[369967885,1751803844343,-500.0,0.00019083,2]
[369967887,1751803844351,-150.0,0.00019083,2]
[369967889,1751803844361,-5751.81585227,0.000191,4]
[369967893,1751803844385,-1216.23439199,0.000191,4]
[369967895,1751803844396,-837.818,0.000191,4]
[369967899,1751803844428,-885.0,0.000191,4]
[369968095,1751803846271,-280.45,0.000191,4]
[369968101,1751803846325,-1623.58742696,0.000191,4]
[369968102,1751803846380,-9695.58581034,0.000191,4]
[369968103,1751803846390,-1224.41418966,0.00019109,2]
[369968104,1751803846434,-379.38838783,0.00019109,2]
[369968111,1751803846491,-130.01542959,0.00019109,2]
[369968113,1751803846501,-150.0,0.00019112,2]
[369968116,1751803846511,-500.0,0.00019112,2]
[369968118,1751803846520,-150.0,0.00019112,2]
[369968119,1751803846530,-500.0,0.00019112,2]
[369968121,1751803846539,-150.0,0.00019112,2]
[369968123,1751803846549,-176.81602078,0.00019119,2]
[369968126,1751803846558,-475.86,0.00019125,2]
[369968127,1751803846568,-265.0,0.00019138,2]
[369968130,1751803846579,-162.380719,0.00019139,2]
[369968132,1751803846588,-500.0,0.00019144,2]
[369968134,1751803846598,-500.0,0.00019144,2]
[369968136,1751803846608,-1099.0,0.00019144,2]
[369968138,1751803846618,-438.0,0.00019144,2]
[369968140,1751803846628,-475.85,0.00019152,2]
[369968142,1751803846638,-475.85,0.0001916,2]
[369968144,1751803846648,-176.81602078,0.00019163,2]
[369968146,1751803846657,-500.54265696,0.00019173,2]
[369968148,1751803846667,-500.0,0.00019173,2]
[369968150,1751803846676,-500.0,0.00019173,2]
[369968151,1751803846686,-500.0,0.00019173,2]
[369968152,1751803846695,-500.0,0.00019173,2]
[369968153,1751803846705,-500.0,0.00019173,2]
[369968154,1751803846714,-71839.16951803,0.00019176,2]
[369968155,1751803846723,-151.0,0.00019176,2]
[369968156,1751803846732,-151.0,0.00019176,2]
[369968157,1751803846741,-151.0,0.00019176,2]
[369968158,1751803846751,-151.0,0.00019176,2]
[369968159,1751803846761,-500.0,0.00019177,2]
[369968160,1751803846770,-500.0,0.00019177,2]
[369968161,1751803846780,-500.0,0.00019177,2]
[369968162,1751803846789,-476.74400847,0.00019177,2]
[369968163,1751803846798,-585.41840827,0.00019177,2]
[369968164,1751803846808,-300.0,0.00019177,2]
[369968165,1751803846817,-404.99051806,0.00019177,2]
[369968167,1751803846828,-179.97537202,0.00019177,2]
[369968169,1751803846837,-163.03474796,0.00019177,2]
[369968171,1751803846847,-2525.75218484,0.00019178,2]
[369968173,1751803846856,-155.616552,0.00019178,2]
[369968175,1751803846866,-170.64026,0.00019178,2]
[369968177,1751803846875,-163.072735,0.00019178,2]
[369968179,1751803846884,-155.616551,0.00019178,2]
[369968181,1751803846894,-465.606724,0.00019178,2]
[369968183,1751803846904,-160.728233,0.00019178,2]
[369968185,1751803846913,-753.269453,0.00019178,2]
[369968187,1751803846922,-152.686751,0.00019178,2]
[369968189,1751803846931,-460.0,0.00019178,2]
[369968191,1751803846941,-460.0,0.00019178,2]
[369968193,1751803846951,-241.69,0.00019178,2]
[369968195,1751803846960,-492.0974312,0.00019178,2]
[369968197,1751803846969,-460.0,0.00019178,2]
[369968199,1751803846978,-460.0,0.00019178,2]
[369968201,1751803846988,-460.0,0.00019178,2]
[369968203,1751803846997,-162.92,0.00019178,2]
[369968205,1751803847006,-460.0,0.00019178,2]
[369968207,1751803847016,-491.91582942,0.00019178,2]
[369968209,1751803847025,-508.85119798,0.00019178,2]
[369968211,1751803847034,-245.135241,0.00019178,2]
[369968212,1751803847044,-460.0,0.00019178,2]
[369968214,1751803847053,-472.6303373,0.00019178,2]
[369968216,1751803847062,-460.0,0.00019178,2]
[369968218,1751803847072,-460.0,0.00019178,2]
[369968220,1751803847082,-460.0,0.00019178,2]
[369968222,1751803847092,-460.0,0.00019178,2]
[369968224,1751803847101,-460.0,0.00019178,2]
[369968226,1751803847111,-460.0,0.00019178,2]
[369968228,1751803847120,-460.0,0.00019178,2]
[369968230,1751803847129,-460.0,0.00019178,2]
[369968232,1751803847139,-460.0,0.00019178,2]
[369968234,1751803847148,-460.0,0.00019178,2]
[369968236,1751803847157,-460.0,0.00019178,2]
[369968238,1751803847166,-460.0,0.00019178,2]
[369968240,1751803847175,-583.23585289,0.00019178,2]
[369968242,1751803847185,-460.0,0.00019178,2]
[369968244,1751803847194,-460.0,0.00019178,2]
[369968246,1751803847203,-378.89,0.00019178,2]
[369968248,1751803847213,-208.83797956,0.00019178,2]
[369968250,1751803847223,-460.0,0.00019178,2]
[369968252,1751803847232,-460.0,0.00019178,2]